fUST/lending_fUST_20250316
["ID","MTS","AMOUNT","RATE_DAILY","PERIOD"]
[356199392,1742067059292,-737.98,0.00010136,2]
[356199393,1742067059302,-1092.13,0.00010136,2]
[356199394,1742067059312,-510.97,0.00010136,2]
[356199395,1742067059321,-500.0,0.00010136,2]
[356199396,1742067059331,-500.0,0.00010136,2]
[356199397,1742067059341,-1688.01,0.00010136,2]
[356199398,1742067059351,-1842.37,0.00010136,2]
[356199399,1742067059360,-5312.66,0.00010136,2]
[356199400,1742067059370,-4793.03,0.00010136,2]
[356199401,1742067059379,-3913.56,0.00010136,2]
[356199402,1742067059388,-4907.26,0.00010136,2]
[356199403,1742067059398,-500.0,0.00010136,2]
[356199404,1742067059407,-742.07,0.00010136,2]
[356199405,1742067059417,-2526.65,0.00010136,2]
[356199406,1742067059427,-2342.89,0.00010136,2]
[356199407,1742067059437,-1004.13,0.00010136,2]
[356199408,1742067059447,-585.25,0.00010136,2]
[356199409,1742067059456,-861.69,0.00010136,2]
[356199410,1742067059466,-500.0,0.00010136,2]
[356199411,1742067059476,-546.05,0.00010136,2]
[356199412,1742067059485,-1809.6,0.00010136,2]
[356199413,1742067059495,-500.0,0.00010136,2]
[356199414,1742067059505,-1914.01,0.00010136,2]
[356199415,1742067059515,-9105.63,0.00010136,2]
[356199416,1742067059525,-3353.85,0.00010136,2]
[356199417,1742067059535,-500.0,0.00010136,2]
[356199418,1742067059545,-513.22,0.00010136,2]
[356199419,1742067059701,-899.31,0.00010136,2]
[356199420,1742067059711,-26251.06,0.00010136,2]
[356199421,1742067059721,-6677.97,0.00010136,2]
[356199422,1742067059730,-641.58,0.00010136,2]
[356199423,1742067059740,-899.48,0.00010136,2]
[356199424,1742067059751,-15894.30868302,0.00010238,2]
[356199425,1742067059763,-250.0,0.00010391,2]
[356199426,1742067059773,-632.70664722,0.00010409,2]
[356199427,1742067059783,-500.0,0.0001041,2]
[356199428,1742067059792,-500.0,0.0001041,2]
[356199429,1742067059802,-500.0,0.0001041,2]
[356199430,1742067059812,-436.69333416,0.0001041,2]
[356199431,1742067059822,-500.0,0.0001041,2]
[356199432,1742067059832,-500.0,0.0001041,2]
[356199433,1742067059842,-637.58,0.0001041,2]
[356199434,1742067059851,-696.6,0.0001041,2]
[356199435,1742067059861,-832.36,0.0001041,2]
[356199436,1742067059870,-709.99,0.0001041,2]
[356199437,1742067059879,-1082.03,0.0001041,2]
[356199438,1742067059889,-500.0,0.0001041,2]
[356199439,1742067059899,-500.0,0.0001041,2]
[356199440,1742067059909,-205.0,0.0001041,2]
[356199441,1742067059919,-205.0,0.0001041,2]
[356199442,1742067059928,-205.0,0.0001041,2]
[356199443,1742067059938,-500.0,0.0001041,2]
[356199444,1742067059947,-500.0,0.0001041,2]
[356199445,1742067059956,-785.76,0.0001041,2]
[356199446,1742067059967,-638.88,0.0001041,2]
[356199447,1742067059977,-500.0,0.0001041,2]
[356199448,1742067059987,-599.47,0.0001041,2]
[356199449,1742067059996,-880.67,0.0001041,2]
[356199450,1742067060006,-500.0,0.0001041,2]
[356199451,1742067060016,-500.0,0.0001041,2]
[356199452,1742067060026,-500.0,0.0001041,2]
[356199453,1742067060035,-2512.3,0.0001041,2]
[356199454,1742067060046,-500.0,0.0001041,2]
[356199455,1742067060056,-629.97,0.0001041,2]
[356199456,1742067060066,-398.35626591,0.0001041,2]
[356199457,1742067060075,-500.0,0.0001041,2]
[356199458,1742067060086,-5757.21,0.0001041,2]
[356199459,1742067060096,-500.0,0.0001041,2]
[356199460,1742067060106,-500.0,0.0001041,2]
[356199461,1742067060116,-2168.17,0.0001041,2]
[356199462,1742067060126,-3023.79,0.0001041,2]
[356199463,1742067060136,-1039.1,0.0001041,2]
[356199464,1742067060146,-4530.86,0.0001041,2]
[356199465,1742067060155,-500.0,0.0001041,2]
[356199466,1742067060165,-1167.67,0.0001041,2]
[356199467,1742067060174,-764.42,0.0001041,2]
[356199468,1742067060183,-500.0,0.0001041,2]
[356199469,1742067060193,-1057.57,0.0001041,2]
[356199470,1742067060203,-500.0,0.0001041,2]
[356199471,1742067060213,-2492.82,0.0001041,2]
[356199472,1742067060223,-5784.7,0.0001041,2]
[356199473,1742067060233,-541.01,0.0001041,2]
[356199474,1742067060243,-535.36,0.0001041,2]
[356199475,1742067060253,-571.18720514,0.0001041,2]
[356199476,1742067060263,-500.0,0.0001041,2]
[356199477,1742067060272,-440.79,0.0001041,2]
[356199478,1742067060283,-500.0,0.0001041,2]
[356199479,1742067060293,-500.0,0.0001041,2]
[356199480,1742067060302,-766.86,0.0001041,2]
[356199481,1742067060312,-9497.76,0.0001041,2]
[356199482,1742067060322,-500.0,0.0001041,2]
[356199483,1742067060332,-895.78,0.0001041,2]
[356199484,1742067060341,-831.01,0.0001041,2]
[356199485,1742067060351,-526.14,0.0001041,2]
[356199486,1742067060360,-737.98,0.0001041,2]
[356199487,1742067060371,-1092.13,0.0001041,2]
[356199488,1742067060380,-510.97,0.0001041,2]
[356199489,1742067060389,-500.0,0.0001041,2]
[356199490,1742067060399,-500.0,0.0001041,2]
[356199491,1742067060409,-1688.01,0.0001041,2]
[356199492,1742067060418,-1842.37,0.0001041,2]
[356199493,1742067060428,-5312.66,0.0001041,2]
[356199494,1742067060438,-4793.03,0.0001041,2]
[356199495,1742067060447,-3913.56,0.0001041,2]
[356199496,1742067060456,-4907.26,0.0001041,2]
[356199497,1742067060466,-193.44,0.0001041,2]
[356199498,1742067060476,-742.07,0.0001041,2]
[356199499,1742067060485,-2526.65,0.0001041,2]
[356199500,1742067060494,-2342.89,0.0001041,2]
[356199501,1742067060503,-1004.13,0.0001041,2]
[356199502,1742067060513,-585.25,0.0001041,2]
[356199503,1742067060522,-861.69,0.0001041,2]
[356199504,1742067060531,-500.0,0.0001041,2]
[356199505,1742067060541,-546.05,0.0001041,2]
[356199506,1742067060550,-1809.6,0.0001041,2]
[356199507,1742067060559,-500.0,0.0001041,2]
[356199508,1742067060568,-1914.01,0.0001041,2]
[356199509,1742067060578,-9105.63,0.0001041,2]
[356199510,1742067060587,-3353.85,0.0001041,2]
[356199511,1742067060597,-500.0,0.0001041,2]
[356199512,1742067060606,-513.22,0.0001041,2]
[356199513,1742067060616,-899.31,0.0001041,2]
[356199514,1742067060625,-26251.06,0.0001041,2]
[356199515,1742067060635,-6677.97,0.0001041,2]
[356199516,1742067060644,-641.58,0.0001041,2]
[356199517,1742067060654,-899.48,0.0001041,2]
[356199518,1742067060663,-10000.0,0.00010411,2]
[356199519,1742067060672,-600.0,0.00010411,2]
[356199520,1742067060682,-10000.0,0.00010466,2]
[356199521,1742067060691,-622.2,0.00010466,2]
[356199522,1742067060700,-10000.0,0.00010521,2]
[356199523,1742067060709,-645.2214,0.00010521,2]
[356199524,1742067060719,-600.0,0.0001056,2]
[356199525,1742067060728,-10000.0,0.00010576,2]
[356199526,1742067060737,-669.0945918,0.00010576,2]
[356199527,1742067060748,-250.0,0.000106,2]
[356199528,1742067060761,-250.0,0.000106,2]
[356199529,1742067060770,-250.0,0.000106,2]
[356199530,1742067060779,-250.0,0.000106,2]
[356199531,1742067060789,-250.0,0.000106,2]
[356199532,1742067060798,-250.0,0.000106,2]
[356199533,1742067060807,-10000.0,0.00010631,2]
[356199534,1742067060816,-693.8510917,0.00010631,2]
[356199535,1742067060826,-160.0,0.00010633,5]
[356199536,1742067060835,-600.0,0.0001067,2]
[356199537,1742067060845,-811.33,0.00010684,2]
[356199538,1742067060854,-500.0,0.00010684,2]
[356199539,1742067060864,-500.0,0.00010684,2]
[356199540,1742067060874,-500.0,0.00010684,2]
[356199541,1742067060883,-500.0,0.00010684,2]
[356199542,1742067060893,-500.0,0.00010684,2]
[356199543,1742067060902,-500.0,0.00010684,2]
[356199544,1742067060911,-696.6,0.00010684,2]
[356199545,1742067060920,-832.36,0.00010684,2]
[356199546,1742067060929,-709.99,0.00010684,2]
[356199547,1742067060939,-1082.03,0.00010684,2]
[356199548,1742067060948,-500.0,0.00010684,2]
[356199549,1742067060957,-500.0,0.00010684,2]
[356199550,1742067060969,-500.0,0.00010684,2]
[356199551,1742067060979,-500.0,0.00010684,2]
[356199552,1742067060989,-785.76,0.00010684,2]
[356199553,1742067060998,-638.88,0.00010684,2]
[356199554,1742067061007,-500.0,0.00010684,2]
[356199555,1742067061017,-599.47,0.00010684,2]
[356199556,1742067061026,-880.67,0.00010684,2]
[356199557,1742067061035,-500.0,0.00010684,2]
[356199558,1742067061044,-500.0,0.00010684,2]
[356199559,1742067061053,-500.0,0.00010684,2]
[356199560,1742067061062,-2512.3,0.00010684,2]
[356199561,1742067061071,-500.0,0.00010684,2]
[356199562,1742067061081,-629.97,0.00010684,2]
[356199563,1742067061090,-500.0,0.00010684,2]
[356199564,1742067061100,-5757.21,0.00010684,2]
[356199565,1742067061109,-500.0,0.00010684,2]
[356199566,1742067061119,-500.0,0.00010684,2]
[356199567,1742067061128,-2168.17,0.00010684,2]
[356199568,1742067061138,-3023.79,0.00010684,2]
[356199569,1742067061147,-1039.1,0.00010684,2]
[356199570,1742067061157,-4530.86,0.00010684,2]
[356199571,1742067061167,-500.0,0.00010684,2]
[356199572,1742067061177,-1167.67,0.00010684,2]
[356199573,1742067061186,-764.42,0.00010684,2]
[356199574,1742067061196,-500.0,0.00010684,2]
[356199575,1742067061205,-1057.57,0.00010684,2]
[356199576,1742067061215,-500.0,0.00010684,2]
[356199577,1742067061224,-2492.82,0.00010684,2]
[356199578,1742067061233,-5784.7,0.00010684,2]
[356199579,1742067061242,-541.01,0.00010684,2]
[356199580,1742067061252,-535.36,0.00010684,2]
[356199581,1742067061261,-525.92281302,0.00010684,2]
[356199582,1742067061271,-500.0,0.00010684,2]
[356199583,1742067061280,-500.0,0.00010684,2]
[356199584,1742067061289,-766.86,0.00010684,2]
[356199585,1742067061298,-9497.76,0.00010684,2]
[356199586,1742067061308,-500.0,0.00010684,2]
[356199587,1742067061318,-895.78,0.00010684,2]
[356199588,1742067061328,-831.01,0.00010684,2]
[356199589,1742067061338,-526.14,0.00010684,2]
[356199590,1742067061347,-737.98,0.00010684,2]
[356199591,1742067061357,-1092.13,0.00010684,2]
[356199592,1742067061366,-510.97,0.00010684,2]
[356199593,1742067061376,-339.7,0.00010684,2]
[356199594,1742067061385,-500.0,0.00010684,2]
[356199595,1742067061394,-1688.01,0.00010684,2]
[356199596,1742067061403,-1842.37,0.00010684,2]
[356199597,1742067061412,-5312.66,0.00010684,2]
[356199598,1742067061422,-4793.03,0.00010684,2]
[356199599,1742067061432,-3913.56,0.00010684,2]
[356199600,1742067061441,-4907.26,0.00010684,2]
[356199601,1742067061451,-742.07,0.00010684,2]
[356199602,1742067061460,-2526.65,0.00010684,2]
[356199603,1742067061470,-2342.89,0.00010684,2]
[356199604,1742067061479,-1004.13,0.00010684,2]
[356199605,1742067061490,-585.25,0.00010684,2]
[356199606,1742067061499,-861.69,0.00010684,2]
[356199607,1742067061511,-500.0,0.00010684,2]
[356199608,1742067061520,-546.05,0.00010684,2]
[356199609,1742067061529,-1809.6,0.00010684,2]
[356199610,1742067061538,-500.0,0.00010684,2]
[356199611,1742067061550,-1914.01,0.00010684,2]
[356199612,1742067061560,-9105.63,0.00010684,2]
[356199613,1742067061570,-3353.85,0.00010684,2]
[356199614,1742067061579,-397.12422904,0.00010684,2]
[356199615,1742067061588,-513.22,0.00010684,2]
[356199616,1742067061598,-899.31,0.00010684,2]
[356199617,1742067061607,-26251.06,0.00010684,2]
[356199618,1742067061617,-6677.97,0.00010684,2]
[356199619,1742067061626,-641.58,0.00010684,2]
[356199620,1742067061635,-899.48,0.00010684,2]
[356199621,1742067061644,-10000.0,0.00010686,2]
[356199622,1742067061654,-719.52358209,0.00010686,2]
[356199623,1742067061663,-10000.0,0.00010741,2]
[356199624,1742067061672,-746.14595463,0.00010741,2]
[356199625,1742067061682,-600.0,0.0001078,2]
[356199626,1742067061691,-10000.0,0.00010796,2]
[356199627,1742067061701,-773.75335495,0.00010796,2]
[356199628,1742067061710,-823.0,0.00010805,2]
[356199629,1742067061719,-10000.0,0.00010851,2]
[356199630,1742067061730,-802.38222908,0.00010851,2]
[356199631,1742067061740,-3000.0,0.00010858,2]
[356199632,1742067061753,-600.0,0.0001089,2]
[356199633,1742067061762,-10000.0,0.00010906,2]
[356199634,1742067061772,-832.07037156,0.00010906,2]
[356199635,1742067061782,-15894.30868302,0.00010917,2]
[356199636,1742067061793,-389.56166159,0.00010938,2]
[356199637,1742067061802,-834.96754831,0.00010948,2]
[356199638,1742067061812,-811.33,0.00010958,2]
[356199639,1742067061823,-500.0,0.00010958,2]
[356199640,1742067061833,-22481.44865589,0.00010958,2]
[356199641,1742067061843,-500.0,0.00010958,2]
[356199642,1742067061853,-500.0,0.00010958,2]
[356199643,1742067061862,-613.67277566,0.00010958,2]
[356199644,1742067061871,-2000.0,0.00010958,2]
[356199645,1742067061881,-2000.0,0.00010958,2]
[356199646,1742067061890,-2070.71735593,0.00010958,2]
[356199647,1742067061899,-500.0,0.00010958,2]
[356199648,1742067061909,-500.0,0.00010958,2]
[356199649,1742067061918,-696.6,0.00010958,2]
[356199650,1742067061928,-832.36,0.00010958,2]
[356199651,1742067061937,-709.99,0.00010958,2]
[356199652,1742067061947,-1082.03,0.00010958,2]
[356199653,1742067061956,-500.0,0.00010958,2]
[356199654,1742067061965,-380.79190597,0.00010958,2]
[356199655,1742067061974,-500.0,0.00010958,2]
[356199656,1742067061984,-500.0,0.00010958,2]
[356199657,1742067061993,-785.76,0.00010958,2]
[356199658,1742067062002,-638.88,0.00010958,2]
[356199659,1742067062011,-500.0,0.00010958,2]
[356199660,1742067062020,-599.47,0.00010958,2]
[356199661,1742067062030,-880.67,0.00010958,2]
[356199662,1742067062040,-549.27780661,0.00010958,2]
[356199663,1742067062049,-500.0,0.00010958,2]
[356199664,1742067062058,-500.0,0.00010958,2]
[356199665,1742067062068,-2512.3,0.00010958,2]
[356199666,1742067062077,-500.0,0.00010958,2]
[356199667,1742067062087,-629.97,0.00010958,2]
[356199668,1742067062097,-500.0,0.00010958,2]
[356199669,1742067062106,-5757.21,0.00010958,2]
[356199670,1742067062116,-500.0,0.00010958,2]
[356199671,1742067062125,-500.0,0.00010958,2]
[356199672,1742067062136,-2168.17,0.00010958,2]
[356199673,1742067062146,-3023.79,0.00010958,2]
[356199674,1742067062156,-1039.1,0.00010958,2]
[356199675,1742067062165,-4530.86,0.00010958,2]
[356199676,1742067062174,-500.0,0.00010958,2]
[356199677,1742067062184,-1167.67,0.00010958,2]
[356199678,1742067062195,-764.42,0.00010958,2]
[356199679,1742067062204,-500.0,0.00010958,2]
[356199680,1742067062213,-1057.57,0.00010958,2]
[356199681,1742067062222,-500.0,0.00010958,2]
[356199682,1742067062232,-2492.82,0.00010958,2]
[356199683,1742067062242,-5784.7,0.00010958,2]
[356199684,1742067062251,-541.01,0.00010958,2]
[356199685,1742067062260,-535.36,0.00010958,2]
[356199686,1742067062269,-181.0,0.00010958,2]
[356199687,1742067062279,-500.0,0.00010958,2]
[356199688,1742067062288,-766.86,0.00010958,2]
[356199689,1742067062298,-500.0,0.00010958,2]
[356199690,1742067062307,-9497.76,0.00010958,2]
[356199691,1742067062317,-895.78,0.00010958,2]
[356199692,1742067062326,-831.01,0.00010958,2]
[356199693,1742067062336,-526.14,0.00010958,2]
[356199694,1742067062346,-737.98,0.00010958,2]
[356199695,1742067062355,-1092.13,0.00010958,2]
[356199696,1742067062366,-510.97,0.00010958,2]
[356199697,1742067062376,-500.0,0.00010958,2]
[356199698,1742067062385,-1688.01,0.00010958,2]
[356199699,1742067062395,-1842.37,0.00010958,2]
[356199700,1742067062405,-5312.66,0.00010958,2]
[356199701,1742067062414,-4793.03,0.00010958,2]
[356199702,1742067062423,-3913.56,0.00010958,2]
[356199703,1742067062432,-4907.26,0.00010958,2]
[356199704,1742067062442,-742.07,0.00010958,2]
[356199705,1742067062451,-2526.65,0.00010958,2]
[356199706,1742067062461,-2342.89,0.00010958,2]
[356199707,1742067062471,-1004.13,0.00010958,2]
[356199708,1742067062480,-585.25,0.00010958,2]
[356199709,1742067062490,-861.69,0.00010958,2]
[356199710,1742067062499,-500.0,0.00010958,2]
[356199711,1742067062508,-546.05,0.00010958,2]
[356199712,1742067062517,-1809.6,0.00010958,2]
[356199713,1742067062527,-500.0,0.00010958,2]
[356199714,1742067062537,-1914.01,0.00010958,2]
[356199715,1742067062547,-9105.63,0.00010958,2]
[356199716,1742067062556,-3353.85,0.00010958,2]
[356199717,1742067062566,-513.22,0.00010958,2]
[356199718,1742067062575,-899.31,0.00010958,2]
[356199719,1742067062585,-26251.06,0.00010958,2]
[356199720,1742067062594,-6677.97,0.00010958,2]
[356199721,1742067062604,-641.58,0.00010958,2]
[356199722,1742067062613,-899.48,0.00010958,2]
[356199723,1742067062622,-151.0,0.00010959,2]
[356199724,1742067062631,-151.0,0.00010959,2]
[356199725,1742067062641,-188.170266,0.00010959,2]
[356199726,1742067062650,-500.0,0.00010959,2]
[356199727,1742067062660,-500.0,0.00010959,2]
[356199728,1742067062670,-500.0,0.00010959,2]
[356199729,1742067062679,-500.0,0.00010959,2]
[356199730,1742067062689,-500.0,0.00010959,2]
[356199731,1742067062698,-500.0,0.00010959,2]
[356199732,1742067062707,-500.0,0.00010959,2]
[356199733,1742067062716,-500.0,0.00010959,2]
[356199734,1742067062725,-500.0,0.00010959,2]
[356199735,1742067062735,-500.0,0.00010959,2]
[356199736,1742067062745,-182.13473,0.00010959,2]
[356199737,1742067062907,-182.13473,0.00010959,2]
[356199738,1742067062918,-182.13473,0.00010959,2]
[356199739,1742067062927,-182.13473,0.00010959,2]
[356199740,1742067062937,-182.13473,0.00010959,2]
[356199741,1742067062947,-182.134721,0.00010959,2]
[356199742,1742067062956,-158.609815,0.00010959,2]
[356199743,1742067062965,-158.609815,0.00010959,2]
[356199744,1742067062974,-158.609815,0.00010959,2]
[356199745,1742067062985,-158.609815,0.00010959,2]
[356199746,1742067062994,-158.609815,0.00010959,2]
[356199747,1742067063004,-158.609815,0.00010959,2]
[356199748,1742067063014,-158.609815,0.00010959,2]
[356199749,1742067063023,-158.609815,0.00010959,2]
[356199750,1742067063033,-158.609815,0.00010959,2]
[356199751,1742067063043,-158.609815,0.00010959,2]
[356199752,1742067063054,-158.609815,0.00010959,2]
[356199753,1742067063064,-158.609815,0.00010959,2]
[356199754,1742067063074,-158.609815,0.00010959,2]
[356199755,1742067063086,-158.609815,0.00010959,2]
[356199756,1742067063096,-158.609815,0.00010959,2]
[356199757,1742067063106,-158.609815,0.00010959,2]
[356199758,1742067063115,-158.609815,0.00010959,2]
[356199759,1742067063125,-158.609815,0.00010959,2]
[356199760,1742067063134,-158.609815,0.00010959,2]
[356199761,1742067063145,-158.609809,0.00010959,2]
[356199762,1742067063155,-333.058682,0.00010959,2]
[356199763,1742067063164,-333.058682,0.00010959,2]
[356199764,1742067063174,-333.058682,0.00010959,2]
[356199765,1742067063184,-333.058682,0.00010959,2]
[356199766,1742067063194,-333.058682,0.00010959,2]
[356199767,1742067063204,-333.058682,0.00010959,2]
[356199768,1742067063214,-333.058682,0.00010959,2]
[356199769,1742067063224,-333.058682,0.00010959,2]
[356199770,1742067063233,-333.058682,0.00010959,2]
[356199771,1742067063243,-333.058682,0.00010959,2]
[356199772,1742067063253,-333.058682,0.00010959,2]
[356199773,1742067063264,-333.058682,0.00010959,2]
[356199774,1742067063274,-333.058682,0.00010959,2]
[356199775,1742067063284,-333.058682,0.00010959,2]
[356199776,1742067063294,-333.058682,0.00010959,2]
[356199777,1742067063303,-333.058682,0.00010959,2]
[356199778,1742067063313,-333.058682,0.00010959,2]
[356199779,1742067063323,-333.058682,0.00010959,2]
[356199780,1742067063333,-333.058682,0.00010959,2]
[356199781,1742067063343,-333.058679,0.00010959,2]
[356199782,1742067063355,-151.0,0.00010959,2]
[356199783,1742067063365,-151.0,0.00010959,2]
[356199784,1742067063376,-151.0,0.00010959,2]
[356199785,1742067063387,-151.0,0.00010959,2]
[356199786,1742067063399,-151.0,0.00010959,2]
[356199787,1742067063410,-151.0,0.00010959,2]
[356199788,1742067063420,-151.0,0.00010959,2]
[356199789,1742067063431,-151.0,0.00010959,2]
[356199790,1742067063442,-151.0,0.00010959,2]
[356199791,1742067063452,-151.0,0.00010959,2]
[356199792,1742067063463,-151.0,0.00010959,2]
[356199793,1742067063474,-151.0,0.00010959,2]
[356199794,1742067063485,-294.967581,0.00010959,2]
[356199795,1742067063496,-151.0,0.00010959,2]
[356199796,1742067063506,-294.153402,0.00010959,2]
[356199797,1742067063516,-151.0,0.00010959,2]
[356199798,1742067063525,-151.0,0.00010959,2]
[356199799,1742067063535,-277.88247,0.00010959,2]
[356199800,1742067063546,-482.491728,0.00010959,2]
[356199801,1742067063556,-482.491728,0.00010959,2]
[356199802,1742067063566,-482.491728,0.00010959,2]
[356199803,1742067063576,-482.491728,0.00010959,2]
[356199804,1742067063588,-482.491728,0.00010959,2]
[356199805,1742067063598,-482.491728,0.00010959,2]
[356199806,1742067063609,-482.491728,0.00010959,2]
[356199807,1742067063620,-482.491728,0.00010959,2]
[356199808,1742067063630,-482.491728,0.00010959,2]
[356199809,1742067063640,-482.491728,0.00010959,2]
[356199810,1742067063650,-482.491728,0.00010959,2]
[356199811,1742067063660,-482.491728,0.00010959,2]
[356199812,1742067063670,-482.491728,0.00010959,2]
[356199813,1742067063681,-482.491728,0.00010959,2]
[356199814,1742067063691,-482.491728,0.00010959,2]
[356199815,1742067063702,-482.491728,0.00010959,2]
[356199816,1742067063713,-482.491728,0.00010959,2]
[356199817,1742067063723,-482.491728,0.00010959,2]
[356199818,1742067063733,-482.491728,0.00010959,2]
[356199819,1742067063754,-482.491729,0.00010959,2]
[356199820,1742067063766,-151.0,0.00010959,2]
[356199821,1742067063777,-151.305575,0.00010959,2]
[356199822,1742067063788,-196.159746,0.00010959,2]
[356199823,1742067063801,-196.159746,0.00010959,2]
[356199824,1742067063811,-196.159746,0.00010959,2]
[356199825,1742067063822,-196.159746,0.00010959,2]
[356199826,1742067063836,-196.159746,0.00010959,2]
[356199827,1742067063847,-196.159746,0.00010959,2]
[356199828,1742067063859,-196.159746,0.00010959,2]
[356199829,1742067063870,-196.159746,0.00010959,2]
[356199830,1742067063881,-196.159746,0.00010959,2]
[356199831,1742067063893,-196.159746,0.00010959,2]
[356199832,1742067063903,-196.159746,0.00010959,2]
[356199833,1742067063915,-196.159746,0.00010959,2]
[356199834,1742067063926,-196.159746,0.00010959,2]
[356199835,1742067063938,-196.159746,0.00010959,2]
[356199836,1742067063950,-196.159746,0.00010959,2]
[356199837,1742067063961,-196.159746,0.00010959,2]
[356199838,1742067063971,-196.159746,0.00010959,2]
[356199839,1742067063983,-196.159746,0.00010959,2]
[356199840,1742067063994,-196.159746,0.00010959,2]
[356199841,1742067064006,-196.159739,0.00010959,2]
[356199842,1742067064016,-153.860773,0.00010959,2]
[356199843,1742067064027,-151.0,0.00010959,2]
[356199844,1742067064038,-151.0,0.00010959,2]
[356199845,1742067064048,-151.0,0.00010959,2]
[356199846,1742067064060,-154.868748,0.00010959,2]
[356199847,1742067064071,-151.0,0.00010959,2]
[356199848,1742067064084,-151.0,0.00010959,2]
[356199849,1742067064094,-151.0,0.00010959,2]
[356199850,1742067064105,-151.0,0.00010959,2]
[356199851,1742067064116,-151.0,0.00010959,2]
[356199852,1742067064127,-151.0,0.00010959,2]
[356199853,1742067064138,-151.0,0.00010959,2]
[356199854,1742067064148,-151.0,0.00010959,2]
[356199855,1742067064158,-151.0,0.00010959,2]
[356199856,1742067064168,-151.0,0.00010959,2]
[356199857,1742067064178,-237.533866,0.00010959,2]
[356199858,1742067064188,-151.0,0.00010959,2]
[356199859,1742067064199,-151.0,0.00010959,2]
[356199860,1742067064209,-252.75959,0.00010959,2]
[356199861,1742067064220,-250.089494,0.00010959,2]
[356199862,1742067064232,-250.089494,0.00010959,2]
[356199863,1742067064243,-250.089494,0.00010959,2]
[356199864,1742067064253,-250.089494,0.00010959,2]
[356199865,1742067064264,-250.089494,0.00010959,2]
[356199866,1742067064275,-250.089494,0.00010959,2]
[356199867,1742067064286,-250.089494,0.00010959,2]
[356199868,1742067064296,-250.089494,0.00010959,2]
[356199869,1742067064306,-250.089494,0.00010959,2]
[356199870,1742067064316,-250.089494,0.00010959,2]
[356199871,1742067064326,-250.089494,0.00010959,2]
[356199872,1742067064337,-250.089494,0.00010959,2]
[356199873,1742067064348,-250.089494,0.00010959,2]
[356199874,1742067064359,-250.089494,0.00010959,2]
[356199875,1742067064369,-250.089494,0.00010959,2]
[356199876,1742067064379,-250.089494,0.00010959,2]
[356199877,1742067064389,-250.089494,0.00010959,2]
[356199878,1742067064399,-250.089494,0.00010959,2]
[356199879,1742067064409,-250.089494,0.00010959,2]
[356199880,1742067064418,-250.089492,0.00010959,2]
[356199881,1742067064430,-151.0,0.00010959,2]
[356199882,1742067064441,-151.0,0.00010959,2]
[356199883,1742067064450,-151.0,0.00010959,2]
[356199884,1742067064460,-151.0,0.00010959,2]
[356199885,1742067064470,-151.0,0.00010959,2]
[356199886,1742067064480,-151.0,0.00010959,2]
[356199887,1742067064490,-151.0,0.00010959,2]
[356199888,1742067064500,-151.0,0.00010959,2]
[356199889,1742067064510,-151.0,0.00010959,2]
[356199890,1742067064519,-151.0,0.00010959,2]
[356199891,1742067064529,-151.0,0.00010959,2]